bitfinex-derivatives/quotes_SOLF0:USTF0_20250124
["timestamp","ask_amount","ask_price","bid_price","bid_amount"]
[1737703300088,14.53750909,262.05,261.83,14.56573689]
[1737703300290,14.53750909,262.05,261.84,0.67265294]
[1737703300487,14.53750909,262.05,261.83,14.53750909]
[1737703300689,3.8173,262.0,261.9,3.8187]
[1737703301288,0.02864361,261.98,261.92,0.02592884]
[1737703302991,0.02864361,261.98,261.8,1.2576]
[1737703303184,14.53750909,261.95,261.79,416.0]
[1737703303492,2.5892,261.94,261.79,416.0]
[1737703303688,3.8197,261.84,261.79,416.0]
[1737703304188,3.82,261.82,261.79,416.02547154]
[1737703304591,0.02521426,261.84,261.79,416.02547154]
[1737703304895,3.8201,261.81,261.79,416.02547154]
[1737703305296,0.02521426,261.84,261.79,416.02547154]
[1737703306387,14.56272335,261.84,261.67,1.2416]
[1737703306589,1.305,261.83,261.67,1.2416]
[1737703306794,3.8207,261.77,261.68,3.8219]
[1737703306994,1.305,261.83,261.66,14.53750909]
[1737703307394,15.80070909,261.94,261.71,14.53750909]
[1737703307601,0.02699829,261.8,261.75,0.0262446]
[1737703307798,3.8193,261.87,261.79,3.8203]
[1737703307996,0.02739709,261.8,261.79,3.8203]
[1737703308196,3.8193,261.87,261.79,3.8203]
[1737703308500,0.0267914,261.82,261.79,3.8203]
[1737703308699,0.0267914,261.82,261.77,3.8463962]
[1737703309098,0.0267914,261.82,261.77,0.0257962]
[1737703309402,0.0267914,261.82,261.8,3.8201]
[1737703310801,0.0267914,261.82,261.77,1.2455962]
[1737703313405,0.0267914,261.82,261.77,0.0257962]
[1737703315205,3.8467914,261.82,261.77,0.0257962]
[1737703315902,3.8204,261.79,261.77,0.0257962]
[1737703321306,0.0267914,261.82,261.72,0.38823]
[1737703322406,0.0267914,261.82,261.74,0.02177606]
[1737703322601,3.8203,261.8,261.74,0.02177606]
[1737703322806,0.0267914,261.82,261.74,0.02177606]
[1737703323905,14.53750909,261.79,261.72,0.38823]
[1737703324111,2.467,261.78,261.72,0.38823]
[1737703324909,3.8212,261.73,261.72,0.38823]
[1737703325507,3.84550674,261.75,261.72,0.38823]
[1737703325708,0.02440674,261.75,261.72,0.38823]
[1737703326114,3.8194,261.86,261.79,3.8203]
[1737703326415,1.2026,261.9,261.72,0.38823]
[1737703326614,3.8194,261.86,261.79,3.8203]
[1737703326911,1.2026,261.9,261.72,14.92573909]
[1737703327107,0.02791388,261.84,261.78,0.02440674]
[1737703327308,0.02791388,261.84,261.82,3.8199]
[1737703327510,0.02791388,261.84,261.78,0.02440674]
[1737703328014,0.02791388,261.84,261.78,3.84480674]
[1737703328214,0.02791388,261.84,261.78,0.02440674]
[1737703330415,3.82,261.82,261.78,0.02440674]
[1737703330609,0.02791388,261.84,261.78,0.02440674]
[1737703331217,3.8204,261.79,261.78,0.02440674]
[1737703331716,3.8202,261.81,261.78,0.02440674]
[1737703332117,0.02791388,261.84,261.78,0.02440674]
[1737703332711,3.8203,261.8,261.72,0.38823]
[1737703332920,206.77090909,261.83,261.72,0.38823]
[1737703333720,3.8211,261.74,261.72,3e-05]
[1737703333978,14.53750909,261.73,261.59,3.8959]
[1737703334115,14.53750909,261.78,261.59,419.8959]
[1737703334315,14.53750909,261.78,261.71,3.8215]
[1737703334515,0.02536524,261.77,261.71,3.8215]
[1737703334713,0.02536524,261.77,261.6,7.00840927]
[1737703334916,15.77090909,261.83,261.61,0.68459314]
[1737703335117,0.02830036,261.71,261.61,17.80651323]
[1737703335320,0.02830036,261.71,261.61,433.80651323]
[1737703335516,15.77090909,261.83,261.62,18.49103975]
[1737703335716,15.77090909,261.83,261.63,0.68452652]
[1737703336515,15.77090909,261.83,261.62,17.80651323]
[1737703336719,3.821,261.75,261.7,0.02421275]
[1737703336922,0.02819455,261.76,261.7,0.02421275]
[1737703337419,3.8214,261.72,261.7,0.02421275]
[1737703338114,3.8212,261.74,261.7,0.02421275]
[1737703338517,0.02819455,261.76,261.7,0.02421275]
[1737703339317,3.8212,261.74,261.7,0.02421275]
[1737703340822,3.8215,261.72,261.7,0.02421275]
[1737703342020,3.8222,261.67,261.61,416.0]
[1737703342630,3.8222,261.67,261.61,419.823]
[1737703343132,3.85108075,261.67,261.61,416.0]
[1737703344531,0.02888075,261.67,261.61,416.0]
[1737703344925,14.53750909,261.64,261.61,416.0]
[1737703345227,0.02888075,261.67,261.61,416.0]
[1737703346631,3.8224,261.66,261.61,416.0]
[1737703346830,0.02888075,261.67,261.61,416.0]
[1737703347331,3.8228,261.63,261.61,416.0]
[1737703348026,3.8228,261.63,261.61,401.78725201]
[1737703348726,3.8228,261.63,261.61,203.31441493]
[1737703349029,0.02888075,261.67,261.61,203.31441493]
[1737703350033,0.02888075,261.67,261.64,3.8225]
[1737703350732,0.02888075,261.67,261.62,3.8228]
[1737703350927,0.02888075,261.67,261.61,190.51823813]
[1737703351627,3.8227,261.63,261.61,190.51823813]
[1737703352433,0.02888075,261.67,261.61,177.51823813]
[1737703354434,3.8224,261.65,261.61,177.51823813]
[1737703355224,3.85118075,261.67,261.61,181.34123813]
[1737703356333,3.8224,261.66,261.61,181.34123813]
[1737703356634,0.02888075,261.67,261.61,177.51823813]
[1737703358726,3.8229,261.62,261.61,177.51823813]
[1737703361635,0.02888075,261.67,261.61,177.51823813]
[1737703362134,3.8224,261.65,261.61,177.51823813]
[1737703362636,0.02888075,261.67,261.61,177.51823813]
[1737703362835,3.8227,261.63,261.61,177.51823813]
[1737703363037,0.02888075,261.67,261.61,177.51823813]
[1737703364140,3.8229,261.62,261.61,177.51823813]
[1737703367037,12.93527357,261.62,261.61,171.77463813]
[1737703367239,12.93527357,261.62,261.61,159.87193813]
[1737703370041,3.8225,261.65,261.61,159.87193813]
[1737703370239,9.11237357,261.66,261.61,141.87193813]
[1737703370444,0.02888075,261.67,261.61,141.87193813]
[1737703372245,9.11237357,261.78,261.61,150.9843117]
[1737703372438,9.11237357,261.78,261.62,1.3109]
[1737703372641,3.821,261.75,261.68,3.822]
[1737703372844,9.11237357,261.78,261.62,1.3109]
[1737703373041,9.11237357,261.74,261.62,1.3109]
[1737703373243,3.8219,261.69,261.62,1.3109]
[1737703373439,3.8219,261.69,261.65,0.02766377]
[1737703374345,3.84666095,261.71,261.65,0.02766377]
[1737703375047,0.02506095,261.71,261.65,3.85006377]
[1737703375347,0.02506095,261.71,261.65,0.02766377]
[1737703375547,0.02506095,261.71,261.66,1.25]
[1737703376145,9.11237357,261.78,261.66,1.25]
[1737703376347,9.11237357,261.78,261.66,143.12193813]
[1737703376543,9.11237357,261.82,261.66,143.12193813]
[1737703377051,9.11237357,261.86,261.66,143.12193813]
[1737703377349,0.02693241,261.79,261.73,0.02693661]
[1737703377549,9.11237357,261.9,261.74,9.11237357]
[1737703377849,9.11237357,261.9,261.74,150.9843117]
[1737703378049,3.819,261.89,261.8,3.8202]
[1737703378244,17.0596241,261.94,261.8,141.87193813]
[1737703378646,0.02834389,261.89,261.84,0.02696808]
[1737703378952,0.02834389,261.89,261.84,141.89890621]
[1737703380047,3.8194,261.86,261.84,141.89890621]
[1737703380946,3.8194,261.86,261.84,116.93630621]
[1737703381154,3.8194,261.86,261.84,100.64320621]
[1737703381354,3.8194,261.86,261.84,59.64320621]
[1737703381553,3.8194,261.86,261.84,49.64470621]
[1737703381751,3.8194,261.86,261.84,15.6786417]
[1737703382056,3.8206,261.78,261.71,1.2343]
[1737703382453,0.02909483,261.77,261.72,0.02933381]
[1737703382749,3.8208,261.76,261.72,0.02933381]
[1737703383357,3.8212,261.74,261.72,0.02933381]
[1737703384158,3.8214,261.72,261.71,176.13953381]
[1737703384357,14.55705326,261.75,261.58,2.4998]
[1737703384659,14.55705326,261.75,261.71,63.7652]
[1737703384861,14.55705326,261.75,261.71,49.6826]
[1737703385058,2.70893476,261.74,261.71,43.8096]
[1737703385357,3.8214,261.72,261.71,32.0143]
[1737703386253,2.70893476,261.73,261.71,32.0143]
[1737703386459,2.70893476,261.72,261.71,32.0143]
[1737703388156,2.70893476,261.72,261.71,14.0143]
[1737703388359,14.58203348,261.75,261.71,14.0143]
[1737703388561,0.02498022,261.75,261.72,3.8214]
[1737703388754,0.02498022,261.75,261.71,14.0143]
[1737703389657,0.02498022,261.75,261.73,3.8212]
[1737703390060,0.02498022,261.75,261.73,17.8355]
[1737703390459,14.55705326,261.85,261.73,14.0143]
[1737703391061,2.71017053,261.84,261.73,14.0143]
[1737703391663,0.02675956,261.81,261.76,0.02427588]
[1737703391866,2.71017053,261.84,261.83,3.8198]
[1737703392164,14.55705326,261.9,261.76,14.03857588]
[1737703392864,14.55705326,261.95,261.76,14.03857588]
[1737703393062,14.55705326,261.95,261.76,13.65054588]
[1737703393063,0.02581011,261.86,261.76,13.65054588]
[1737703393261,14.55705326,261.95,261.88,3.8189]
[1737703393460,14.55705326,262.0,261.76,13.65054588]
[1737703394363,14.55705326,262.0,261.84,0.02801667]
[1737703394564,0.02643275,261.89,261.84,13.67856255]
[1737703399771,3.8195,261.86,261.84,13.67856255]
[1737703400972,3.8195,261.86,261.84,7.73336255]
[1737703401471,3.8195,261.86,261.84,1.44086255]
[1737703401772,3.8195,261.86,261.84,6.255e-05]
[1737703402773,14.55705326,261.85,261.82,4.796e-05]
[1737703403072,14.55705326,261.85,261.75,1.2952]
[1737703403268,14.55705326,261.85,261.62,3.8227]
[1737703403467,3.8218,261.7,261.65,2.4301]
[1737703403675,14.55705326,261.8,261.65,2.4301]
[1737703404071,2.70535625,261.79,261.65,2.4301]
[1737703404377,0.02765234,261.75,261.7,0.02543176]
[1737703404974,3.8216,261.71,261.7,0.02543176]
[1737703405175,0.02765234,261.75,261.7,0.02543176]
[1737703406079,0.02765234,261.75,261.73,0.38789]
[1737703407079,3.84865234,261.75,261.73,0.38789]
[1737703408473,0.02765234,261.75,261.73,0.38789]
[1737703408874,14.55705326,261.86,261.73,32.38789]
[1737703409071,3.8202,261.81,261.73,36.20909]
[1737703409275,205.55705326,261.91,261.73,32.38789]
[1737703409476,205.55705326,261.91,261.74,1.2804]
[1737703410082,0.02718319,261.85,261.8,0.0275855]
[1737703410277,3.82,261.82,261.8,0.0275855]
[1737703411679,0.02718319,261.85,261.8,0.0275855]
[1737703411877,0.02718319,261.85,261.8,35.8477855]
[1737703413180,14.55705326,261.96,261.83,3.8198]
[1737703413375,14.55705326,261.96,261.83,32.0]
[1737703413780,2.7079621,261.95,261.83,32.0]
[1737703414377,0.02645861,261.92,261.86,0.02602996]
[1737703414584,0.078,262.05,261.86,0.02602996]
[1737703414585,5.23942605,262.12,261.87,18.15705326]
[1737703414780,5.23942605,262.12,261.96,14.55705326]
[1737703414981,5.23942605,262.12,262.0,3.8172]
[1737703415176,5.23942605,262.12,261.96,46.55705326]
[1737703415686,0.02446622,262.07,262.01,0.02712621]
[1737703418181,3.84076622,262.07,262.01,0.02712621]
[1737703418685,0.02446622,262.07,262.01,0.02712621]
[1737703420789,0.02446622,262.07,262.01,32.02712621]
[1737703420987,3.8169,262.03,262.01,32.02712621]
[1737703422686,3.8169,262.03,262.01,6.11712621]
[1737703422877,3.8169,262.03,262.01,2.621e-05]
[1737703424082,3.8169,262.03,262.01,6.00002621]
[1737703424387,14.55705326,262.06,261.88,3.8152]
[1737703424586,14.55705326,262.06,261.88,2.5789]
[1737703424787,3.8172,262.01,261.88,2.5789]
[1737703424980,14.55705326,262.06,261.88,2.5789]
[1737703425491,0.02476521,262.0,261.94,0.02579517]
[1737703426189,3.8181,261.95,261.94,0.02579517]
[1737703428092,3.8181,261.95,261.94,9.517e-05]
[1737703437693,12.91603879,261.95,261.94,9.517e-05]
[1737703439698,3.8175,261.99,261.94,9.517e-05]
[1737703439899,0.02476521,262.0,261.94,9.517e-05]
[1737703440201,0.02476521,262.0,261.94,1.28759517]
[1737703441399,0.02476521,262.0,261.95,3.818]
[1737703441995,3.8177,261.98,261.94,1.28759517]
[1737703442199,0.02476521,262.0,261.94,1.28759517]
[1737703442596,3.8176,261.98,261.94,1.28759517]
[1737703443502,3.8178,261.97,261.94,1.28759517]
[1737703443899,3.8178,261.97,261.94,9.517e-05]
[1737703444204,3.8179,261.96,261.94,9.517e-05]
[1737703445593,14.53889304,261.96,261.73,0.38789]
[1737703445799,14.53889304,261.96,261.74,2.5478]
[1737703446299,191.0,261.99,261.74,2.5478]
[1737703446501,191.0,261.99,261.81,14.53889304]
[1737703446802,0.02848118,261.93,261.9,3.8187]
[1737703447101,3.9116,262.05,261.9,2.15765888]
[1737703447293,0.02472911,261.94,261.9,2.15765888]
[1737703447501,3.9116,262.05,261.9,2.15765888]
[1737703447696,0.02524077,261.95,261.9,2.15765888]
[1737703448101,0.02524077,261.95,261.9,2.18482312]
[1737703448602,0.02524077,261.95,261.9,0.02716424]
[1737703449003,14.53889304,262.09,261.9,0.02716424]
[1737703449305,14.53889304,262.09,261.87,2.4725]
[1737703449702,3.8174,262.0,261.93,3.8182]
[1737703449901,14.53889304,262.04,261.87,2.4725]
[1737703450402,0.02530595,261.98,261.93,0.02749536]
[1737703451705,3.8178,261.97,261.93,0.02749536]
[1737703452201,3.8181,261.95,261.93,0.02749536]
[1737703454001,3.8179,261.97,261.93,0.02749536]
[1737703455406,0.02530595,261.98,261.93,0.02749536]
[1737703455607,0.02530595,261.98,261.96,3.8179]
[1737703457104,0.02530595,261.98,261.95,3.818]
[1737703457805,0.02530595,261.98,261.93,0.02749536]
[1737703458009,0.02530595,261.98,261.96,3.8179]
[1737703458508,0.02530595,261.98,261.94,1.3309]
[1737703458709,0.02530595,261.98,261.94,5.149]
[1737703458906,0.02530595,261.98,261.94,1.3309]
[1737703459711,0.02530595,261.98,261.93,0.02749536]
[1737703461109,3.8181,261.95,261.93,0.02749536]
[1737703464810,9.09495824,261.96,261.82,1.3031]
[1737703465006,9.09495824,261.92,261.82,1.3031]
[1737703465409,3.8191,261.88,261.77,2.5197]
[1737703465708,9.09495824,261.92,261.77,2.5197]
[1737703465914,3.8201,261.81,261.77,2.5197]
[1737703466207,9.09495824,261.88,261.77,2.5197]
[1737703466512,0.02453044,261.82,261.77,2.5197]
[1737703467910,0.02453044,261.82,261.76,0.02488408]
[1737703468409,0.02453044,261.82,261.8,3.8202]
[1737703468609,9.09495824,261.94,261.76,0.02488408]
[1737703468807,9.09495824,261.94,261.75,9.09495824]
[1737703469009,3.8188,261.91,261.8,3.8201]
[1737703469204,9.09495824,261.94,261.75,9.09495824]
[1737703469714,0.02486178,261.87,261.83,3.8196]
[1737703469919,0.02486178,261.87,261.82,0.02574749]
[1737703471315,0.02486178,261.87,261.84,3.8196]
[1737703472012,0.02486178,261.87,261.82,0.02574749]
[1737703472807,3.8197,261.84,261.82,0.02574749]
[1737703473710,0.02486178,261.87,261.82,0.02574749]
[1737703473912,0.02486178,261.87,261.85,3.8195]
[1737703474716,9.09495824,261.98,261.9,3.8188]
[1737703475219,9.09495824,261.98,261.83,3.8939]
[1737703475811,0.02779644,261.93,261.88,0.02825472]
[1737703476115,0.02779644,261.93,261.83,2.61360989]
[1737703476619,3.8187,261.91,261.86,3.8193]
[1737703476813,0.02779644,261.93,261.83,2.6111]
[1737703477217,0.02779644,261.93,261.87,3.8191]
[1737703478116,0.02779644,261.93,261.85,0.02783442]
[1737703478307,3.84619644,261.93,261.88,3.8191]
[1737703478513,0.02779644,261.93,261.85,0.02783442]
[1737703479911,5.23942605,262.12,261.92,9.09495824]
[1737703480117,5.23942605,262.12,261.98,9.09495824]
[1737703480309,5.23942605,262.12,262.1,3.8157]
[1737703480513,5.23942605,262.12,261.98,202.09495824]
[1737703481019,0.0289318,262.08,262.02,0.02783764]
[1737703481518,0.0289318,262.08,262.05,3.8165]
[1737703482018,0.0289318,262.08,262.02,0.02783764]
[1737703482313,0.0289318,262.08,262.06,3.8164]
[1737703482813,0.0289318,262.08,262.02,0.02783764]
[1737703484527,3.8168,262.04,262.02,0.02783764]
[1737703486026,14.53315496,262.05,261.88,2.5822]
[1737703486027,3.8178,261.97,261.88,2.5822]
[1737703486229,14.53315496,262.0,261.83,193.0]
[1737703486823,14.53315496,261.95,261.83,193.0]
[1737703487333,0.02723362,261.92,261.86,0.0266901]
[1737703487929,14.53315496,261.9,261.86,0.0266901]
[1737703489234,3.8192,261.88,261.86,0.0266901]
[1737703489534,14.53315496,261.9,261.71,1.2341]
[1737703490026,14.53315496,261.9,261.7,195.5822]
[1737703490228,2.5055,261.91,261.7,195.5822]
[1737703490629,0.02815698,261.83,261.79,3.8202]
[1737703491524,0.02815698,261.83,261.7,195.5822]
[1737703491725,0.02815698,261.83,261.81,3.82]
[1737703495734,5.698e-05,261.83,261.81,3.82]
[1737703499438,5.698e-05,261.83,261.79,0.02779122]
[1737703500937,3.8201,261.81,261.79,0.02779122]
[1737703502242,5.698e-05,261.83,261.79,0.02779122]
[1737703502841,5.698e-05,261.83,261.66,0.38708]
[1737703503047,14.53315496,261.76,261.66,0.38708]
[1737703504039,0.02527113,261.74,261.66,0.38708]
[1737703505141,2.5159,261.99,261.72,14.53315496]
[1737703505346,2.5159,261.99,261.83,14.53315496]
[1737703505547,191.0,262.2,261.83,14.53315496]
[1737703505749,5.23942605,261.97,261.83,14.53315496]
[1737703506147,0.02606878,261.93,261.9,3.8187]
[1737703506345,0.02606878,261.93,261.87,0.02570651]
[1737703508649,0.02606878,261.93,261.89,3.8188]
[1737703508844,0.02606878,261.93,261.87,0.02570651]
[1737703510047,0.02606878,261.93,261.9,3.8186]
[1737703510551,0.02606878,261.93,261.87,0.02570651]
[1737703512054,0.02606878,261.93,261.89,3.8189]
[1737703513555,0.02606878,261.93,261.87,0.02570651]
[1737703514455,3.8172,262.01,261.87,0.02570651]
[1737703514656,2.5159,262.07,261.85,2.4085]
[1737703514954,3.8177,261.98,261.91,3.8185]
[1737703515149,2.5159,262.07,261.85,2.4085]
[1737703515657,0.02557858,261.97,261.92,3.84590632]
[1737703516355,0.02557858,261.97,261.93,3.8183]
[1737703517862,3.8165,262.06,261.95,3.8179]
[1737703518158,3.8165,262.06,261.9,14.53315496]
[1737703519157,0.02779786,262.01,261.95,0.02534144]
[1737703520961,3.8175,261.99,261.95,0.02534144]
[1737703521155,0.02779786,262.01,261.95,0.02534144]
[1737703521661,3.8175,261.99,261.95,0.02534144]
[1737703521960,0.02779786,262.01,261.95,0.02534144]
[1737703522158,3.8174,262.0,261.95,0.02534144]
[1737703522360,0.02779786,262.01,261.95,0.02534144]
[1737703522557,3.8179,261.96,261.95,0.02534144]
[1737703523060,0.02779786,262.01,261.85,1.2037]
[1737703523259,14.53315496,262.03,261.78,207.53315496]
[1737703523455,1.2466,262.05,261.77,1.2912]
[1737703523456,14.53315496,261.98,261.77,1.2912]
[1737703523657,14.53315496,261.93,261.77,1.2912]
[1737703523961,3.8185,261.92,261.82,3.8199]
[1737703524153,0.0259806,261.88,261.82,0.02501167]
[1737703524359,0.0259806,261.88,261.77,1.2912]
[1737703524660,0.0259806,261.88,261.82,0.02465653]
[1737703525259,0.0259806,261.88,261.84,3.8196]
[1737703526462,0.0259806,261.88,261.82,0.02465653]
[1737703526662,0.0259806,261.88,261.82,3.84455653]
[1737703527264,0.0259806,261.88,261.82,0.02465653]
[1737703528363,3.8192,261.87,261.82,0.02465653]
[1737703528565,0.0259806,261.88,261.82,0.02465653]
[1737703529761,3.8192,261.87,261.82,0.02465653]
[1737703529958,0.0259806,261.88,261.82,0.02465653]
[1737703532067,3.8197,261.84,261.82,0.02465653]
[1737703532360,0.0259806,261.88,261.82,0.02465653]
[1737703532762,0.0259806,261.88,261.86,3.8193]
[1737703533062,0.0259806,261.88,261.82,0.02465653]
[1737703533465,0.0259806,261.88,261.85,3.8194]
[1737703533670,0.0259806,261.88,261.82,0.02465653]
[1737703534069,0.0259806,261.88,261.85,3.8194]
[1737703534969,0.0259806,261.88,261.86,3.8193]
[1737703536566,14.53315496,262.03,261.91,3.8186]
[1737703536766,14.53315496,262.03,261.91,196.8186]
[1737703536970,14.53315496,262.03,261.91,193.0]
[1737703537371,3.8174,262.0,261.91,193.0]
[1737703537579,0.02433579,261.98,261.93,0.02498897]
[1737703538671,3.8178,261.97,261.93,193.02498897]
[1737703538872,0.02433579,261.98,261.93,193.02498897]
[1737703539073,3.8178,261.97,261.93,193.02498897]
[1737703539978,0.02433579,261.98,261.93,193.02498897]
[1737703540677,3.84193579,261.98,261.93,196.84328897]
[1737703541479,3.84193579,261.98,261.93,193.02498897]
[1737703541778,0.02433579,261.98,261.93,193.02498897]
[1737703542078,3.8178,261.97,261.93,193.02498897]
[1737703543178,3.8182,261.94,261.93,193.02498897]
[1737703543777,12.91464356,261.94,261.93,193.02498897]
[1737703543974,12.91464356,261.94,261.93,182.78108305]
[1737703544278,3.8195,261.85,261.8,3.8201]
[1737703544479,9.09644356,261.89,261.8,79.92827154]
[1737703545174,9.09644356,261.85,261.82,0.02410802]
[1737703545678,14.58963239,261.87,261.82,0.02410802]
[1737703545874,3.8199,261.83,261.82,0.02410802]
[1737703547280,14.58963239,261.87,261.8,67.16513535]
[1737703547281,3.82,261.82,261.8,67.16513535]
[1737703547678,14.56429758,261.82,261.67,68.46033535]
[1737703547883,3.821,261.75,261.67,72.28243535]
[1737703548182,14.56429758,261.82,261.67,68.46033535]
[1737703548381,0.0247865,261.74,261.68,0.02904123]
[1737703548584,3.8458865,261.74,261.68,0.02904123]
[1737703548780,0.0247865,261.74,261.68,0.02904123]
[1737703548981,0.0247865,261.74,261.69,3.8218]
[1737703549184,0.0247865,261.74,261.68,0.02904123]
[1737703551076,0.0247865,261.74,261.71,3.8215]
[1737703551279,0.0247865,261.74,261.68,0.02904123]
[1737703551477,0.0247865,261.74,261.69,3.8217]
[1737703551984,0.0247865,261.74,261.68,0.02904123]
[1737703553583,0.0247865,261.74,261.68,67.19417658]
[1737703553879,14.56429758,261.87,261.68,67.19417658]
[1737703554085,14.56429758,261.87,261.68,67.16513535]
[1737703554280,14.56429758,261.95,261.68,67.16513535]
[1737703554481,14.56429758,261.95,261.69,14.56429758]
[1737703554682,14.56429758,261.9,261.69,14.56429758]
[1737703554886,0.02559087,261.85,261.81,3.8201]
[1737703555085,0.02559087,261.85,261.79,0.02843276]
[1737703555385,0.02559087,261.85,261.83,3.8198]
[1737703556780,14.56429758,261.95,261.83,67.16513535]
[1737703557088,14.56429758,262.0,261.91,3.8186]
[1737703557385,14.61729758,262.08,261.9,3.8187]
[1737703557587,3.8173,262.01,261.9,67.16513535]
[1737703557885,14.61729758,262.08,261.9,67.16513535]
[1737703558085,0.02420917,261.98,261.93,0.02520399]
[1737703558487,0.02420917,261.98,261.95,3.818]
[1737703558883,0.02420917,261.98,261.93,67.19033934]
[1737703559585,3.818,261.96,261.93,67.19033934]
[1737703559990,0.02420917,261.98,261.93,67.19033934]
[1737703560288,3.8182,261.94,261.93,67.19033934]
[1737703560780,3.8182,261.94,261.93,0.02520399]
[1737703560985,3.8182,261.94,261.93,3.99e-06]
[1737703561687,14.56429758,261.97,261.84,67.16513535]
[1737703561887,3.8192,261.88,261.84,67.16513535]
[1737703562789,3.8191,261.88,261.84,67.16513535]
[1737703564301,3.8193,261.87,261.84,67.16513535]
[1737703565799,0.02769297,261.89,261.84,67.16513535]
[1737703567000,3.8194,261.86,261.84,61.26103535]
[1737703567195,14.56429758,261.87,261.83,0.0265694]
[1737703567398,14.56429758,261.87,261.83,6.94e-05]
[1737703567707,3.8196,261.84,261.83,6.94e-05]
[1737703567894,14.56429758,261.87,261.73,55.49373535]
[1737703568098,14.56429758,261.82,261.67,1.2529]
[1737703569194,0.02671225,261.77,261.72,0.02483279]
[1737703569405,3.8213,261.73,261.72,0.02483279]
[1737703569703,14.59100983,261.77,261.72,0.02483279]
[1737703570002,0.02671225,261.77,261.72,3.84623279]
[1737703570199,14.56429758,261.95,261.72,0.02483279]
[1737703570404,14.56429758,261.95,261.72,55.49373535]
[1737703571305,0.02791416,261.86,261.81,0.02699404]
[1737703571809,14.56429758,261.95,261.88,3.819]
[1737703572000,14.56429758,261.95,261.82,2.6473]
[1737703572202,5.23942605,261.98,261.82,2.6473]
[1737703572402,5.23942605,261.98,261.82,58.14103535]
[1737703572702,14.56429758,262.07,261.82,58.14103535]
[1737703572902,3.8168,262.04,261.87,0.02627084]
[1737703573205,0.02747385,261.97,261.85,14.56429758]
[1737703573401,14.56429758,262.12,261.93,0.02823826]
[1737703573603,14.56429758,262.12,261.93,55.49373535]
[1737703573805,14.56429758,262.12,261.94,1.2715]
[1737703574005,14.56429758,262.12,261.97,3.8177]
[1737703574199,14.56429758,262.12,261.95,1.2941]
[1737703574704,0.02784911,262.06,262.01,0.02801901]
[1737703575506,14.56429758,262.12,262.01,0.02801901]
[1737703576503,0.02562668,262.09,262.04,3.8166]
[1737703576697,3.8155,262.13,262.04,3.8166]
[1737703576903,0.02641215,262.09,262.04,0.0251046]
[1737703578406,14.56429758,262.18,262.04,0.0251046]
[1737703578713,21.47000714,262.2,262.04,55.51883995]
[1737703578906,21.47000714,262.2,262.05,1.252]
[1737703579309,21.47000714,262.2,262.05,56.74573535]
[1737703579708,0.02629063,262.15,262.1,0.02472803]
[1737703580306,14.56429758,262.13,262.1,0.02472803]
[1737703580515,3.8157,262.12,262.1,0.02472803]
[1737703580807,14.56429758,262.13,261.98,1.3035]
[1737703581014,3.817,262.03,261.98,1.3035]
[1737703581211,14.56429758,262.07,261.85,3.58]
[1737703581514,3.8178,261.97,261.88,3.819]
[1737703581705,14.56429758,262.07,261.86,1.2966]
[1737703582015,3.8178,261.97,261.94,0.02740631]
[1737703582205,0.02618739,261.99,261.94,0.02740631]
[1737703582613,3.8179,261.96,261.94,0.02740631]
[1737703583609,3.8188,261.91,261.86,1.2966]
[1737703583814,14.56429758,261.99,261.86,1.2966]
[1737703584616,14.56429758,262.07,261.86,1.2966]
[1737703584915,0.02841936,261.95,261.9,0.02736624]
[1737703585114,14.56429758,262.07,261.86,1.2966]
[1737703585311,0.0288506,261.95,261.9,0.02566035]
[1737703585515,14.56429758,262.02,261.86,1.2966]
[1737703585719,0.02821719,261.95,261.9,0.02580739]
[1737703585919,3.8184,261.93,261.9,0.02580739]
[1737703586514,3.84631719,261.95,261.9,0.02580739]
[1737703586710,0.02821719,261.95,261.9,0.02580739]
[1737703589622,3.8185,261.93,261.9,0.02580739]
[1737703590315,3.8185,261.93,261.86,1.2966]
[1737703590513,3.84631719,261.95,261.86,1.2966]
[1737703590922,0.02821719,261.95,261.86,1.2966]
[1737703591421,3.84631719,261.95,261.88,0.02729716]
[1737703594223,3.84631719,261.95,261.89,3.8189]
[1737703594416,0.02821719,261.95,261.88,0.02729716]
[1737703594923,3.8183,261.93,261.88,0.02729716]
[1737703595221,0.02821719,261.95,261.88,0.02729716]
[1737703595414,3.8188,261.9,261.88,0.02729716]
[1737703596323,14.56429758,261.92,261.78,1.2535]
[1737703596521,14.59251477,261.95,261.78,1.2535]
[1737703596522,14.56429758,261.95,261.78,1.2535]
[1737703597023,3.8195,261.85,261.78,5.0739]
[1737703597319,0.02780637,261.84,261.79,0.02638639]
[1737703597720,0.02780637,261.84,261.79,3.84668639]